bitfinex/quotes_SOLUSD_20241028
["timestamp","ask_amount","ask_price","bid_price","bid_amount"]
[1730110722933,20.12549,178.11,178.07,10.92032097]
[1730110723140,25.73999,178.11,178.08,10.92032097]
[1730110723438,5.73999,178.11,178.08,10.92032097]
[1730110725623,5.73999,178.11,178.07,10.92032097]
[1730110725819,0.12549,178.12,178.08,10.92032097]
[1730110726123,5.73969,178.12,178.09,10.92032097]
[1730110726325,5.6139,178.13,178.1,10.92032097]
[1730110727539,5.6133,178.15,178.12,10.92032097]
[1730110727843,21.5978,178.17,178.14,10.92032097]
[1730110729529,0.25098,178.16,178.14,10.92032097]
[1730110730348,21.5978,178.17,178.14,10.92032097]
[1730110733658,0.25098,178.12,178.09,10.92032097]
[1730110734231,5.86518,178.12,178.09,10.92032097]
[1730110735947,5.86518,178.12,178.08,10.92032097]
[1730110737429,16.78550097,178.12,178.07,10.92032097]
[1730110737633,16.78550097,178.12,178.0,6.3788]
[1730110737634,0.25098,178.1,178.01,20.0]
[1730110737839,0.25098,178.1,178.07,10.92032097]
[1730110738637,5.86578,178.1,178.08,10.92032097]
[1730110738937,0.12549,178.11,178.09,10.92032097]
[1730110739451,0.25098,178.11,178.09,10.92032097]
[1730110739835,5.86548,178.11,178.09,10.92032097]
[1730110740153,25.6139,178.13,178.09,10.92032097]
[1730110740349,5.6132,178.15,178.11,10.92032097]
[1730110740653,0.12549,178.14,178.11,10.92032097]
[1730110741433,0.25098,178.14,178.11,10.92032097]
[1730110741640,5.86468,178.14,178.11,10.92032097]
[1730110742347,5.86468,178.14,178.1,10.92032097]
[1730110742562,16.78500097,178.14,178.09,10.92032097]
[1730110742866,5.86468,178.14,178.1,10.92032097]
[1730110745967,5.86468,178.14,178.11,10.92032097]
[1730110746136,5.86468,178.14,178.04,20.1]
[1730110746137,10.92032097,178.13,178.08,10.92032097]
[1730110747155,16.53442097,178.13,178.08,10.92032097]
[1730110748355,5.6141,178.13,178.09,10.92032097]
[1730110748959,5.86468,178.14,178.11,10.92032097]
[1730110749140,5.86468,178.14,178.1,10.92032097]
[1730110751646,5.86468,178.14,178.11,10.92032097]
[1730110753555,5.86468,178.14,178.1,10.92032097]
[1730110753866,5.73869,178.15,178.11,10.92032097]
[1730110754801,5.73869,178.15,178.12,10.92032097]
[1730110754949,16.65871097,178.16,178.11,10.92032097]
[1730110755552,0.25098,178.15,178.05,15.329]
[1730110755758,0.12549,178.11,178.01,16.2939]
[1730110756056,16.78600097,178.11,178.06,10.92032097]
[1730110756646,5.86568,178.11,178.07,10.92032097]
[1730110756853,70.12549,178.14,178.02,43.68128388]
[1730110756854,16.53412097,178.13,178.09,10.92032097]
[1730110757058,0.25098,178.12,178.08,10.92032097]
[1730110757760,11.17130097,178.12,178.07,10.92032097]
[1730110758645,11.04581097,178.09,178.04,10.92032097]
[1730110758855,10.92032097,178.09,178.04,10.92032097]
[1730110760362,16.66091097,178.1,178.05,10.92032097]
[1730110760667,0.12549,178.09,178.05,10.92032097]
[1730110762154,0.12549,178.08,178.04,10.92032097]
[1730110763257,11.17130097,178.08,178.04,10.92032097]
[1730110763563,0.25098,178.07,178.04,10.92032097]
[1730110764067,0.25098,178.07,178.03,10.92032097]
[1730110765070,0.25098,178.07,178.04,10.92032097]
[1730110766268,0.25098,178.07,177.98,0.1]
[1730110766269,5.615,178.1,178.06,10.92032097]
[1730110766450,0.25098,178.1,178.06,10.92032097]
[1730110766650,15.7349,178.11,178.08,10.92032097]
[1730110767051,20.12549,178.12,178.08,10.92032097]
[1730110767256,20.0,178.12,178.08,10.92032097]
[1730110767656,0.12549,178.11,178.08,10.92032097]
[1730110767856,25.6142,178.12,178.08,10.92032097]
[1730110768062,0.12549,178.11,178.08,10.92032097]
[1730110768457,0.25098,178.11,178.08,10.92032097]
[1730110768765,0.12549,178.11,178.08,10.92032097]
[1730110768967,11.17130097,178.11,178.06,10.92032097]
[1730110769859,0.12549,178.09,178.03,23.776884]
[1730110770066,11.04581097,178.08,178.03,10.92032097]
[1730110771771,20.0,178.12,178.03,10.92032097]
[1730110771772,5.6145,178.11,178.04,23.776884]
[1730110771950,10.92032097,178.1,178.05,10.92032097]
[1730110772471,0.25098,178.1,178.06,10.92032097]
[1730110772966,11.17130097,178.1,178.05,10.92032097]
[1730110773468,16.78620097,178.1,178.05,10.92032097]
[1730110773847,16.78620097,178.1,178.04,34.69720497]
[1730110775251,10.92032097,178.08,177.97,0.1]
[1730110775466,0.12549,178.07,178.03,10.92032097]
[1730110776371,11.04581097,178.08,178.03,10.92032097]
[1730110776671,11.04581097,178.08,178.04,10.92032097]
[1730110776672,5.74099,178.08,178.04,10.92032097]
[1730110777066,0.25098,178.08,178.04,10.92032097]
[1730110778675,0.25098,178.08,177.98,0.1]
[1730110778676,11.17130097,178.06,177.98,23.776884]
[1730110778863,11.17130097,178.06,178.01,10.92032097]
[1730110779173,10.92032097,178.05,178.0,10.92032097]
[1730110779674,11.17130097,178.03,177.91,21.5907]
[1730110779975,11.17130097,178.03,177.98,10.92032097]
[1730110780380,11.17130097,178.03,177.97,10.92032097]
[1730110780381,0.25098,178.01,177.97,10.92032097]
[1730110780572,16.78900097,178.01,177.96,10.92032097]
[1730110781167,0.25098,178.01,177.97,10.92032097]
[1730110781375,0.25098,178.01,177.98,10.92032097]
[1730110782079,0.25098,178.01,177.93,43.68128388]
[1730110782257,0.25098,178.01,177.96,10.92032097]
[1730110783655,10.92032097,178.0,177.95,10.92032097]
[1730110783858,0.25098,177.99,177.94,10.92032097]
[1730110784374,5.86938,177.99,177.94,10.92032097]
[1730110785570,5.86938,177.99,177.95,10.92032097]
[1730110788077,75.616,178.06,177.94,43.776884]
[1730110788256,5.6145,178.11,178.05,10.92032097]
[1730110788457,30.0,178.06,178.03,23.776884]
[1730110789272,0.12549,178.11,178.03,23.776884]
[1730110789476,20.25098,178.1,178.09,10.92032097]
[1730110790276,0.25098,178.1,178.09,10.92032097]
[1730110790484,0.25098,178.1,178.09,17.05382956]
[1730110790983,5.86578,178.1,178.09,17.05382956]
[1730110791152,5.99127,178.1,178.09,17.05382956]
[1730110793660,27.1989,178.12,178.09,17.05382956]
[1730110793887,41.34518,178.12,178.11,17.05382956]
[1730110794063,41.47067,178.12,178.11,17.05382956]
[1730110798572,111.47067,178.12,178.11,17.05382956]
[1730110800772,0.25098,178.11,178.1,17.05382956]
[1730110801088,0.12549,178.1,178.09,17.05382956]
[1730110804099,70.12549,178.08,177.96,22.5361]
[1730110804393,5.74179,178.06,177.96,22.5361]
[1730110804580,5.74179,178.06,178.03,17.05382956]
[1730110804782,5.74179,178.06,178.02,17.05382956]
[1730110804783,0.12549,178.04,178.02,17.05382956]
[1730110804970,0.12549,178.04,178.01,17.05382956]
[1730110805401,0.12549,178.02,178.01,17.05382956]
[1730110806099,0.12549,178.0,177.92,22.5023]
[1730110806279,0.12549,178.0,177.99,17.05382956]
[1730110807276,5.6154,178.08,177.99,17.05382956]
[1730110807476,21.0795,178.1,178.07,17.05382956]
[1730110807684,5.6144,178.12,178.09,17.05382956]
[1730110807891,0.12549,178.11,178.1,17.05382956]
[1730110808299,5.6144,178.12,178.1,17.05382956]
[1730110808497,70.0,178.11,178.1,17.05382956]
[1730110808704,70.12549,178.11,178.1,17.05382956]
[1730110809398,0.12549,178.11,178.1,17.05382956]
[1730110809599,5.73999,178.11,178.1,17.05382956]
[1730110809780,0.12549,178.11,178.1,17.05382956]
[1730110811790,75.99097,178.11,178.09,17.05382956]
[1730110811989,0.12549,178.09,178.08,17.05382956]
[1730110812199,0.37647,178.06,177.96,6.5575]
[1730110812501,0.12549,178.03,178.01,17.05382956]
[1730110812678,0.12549,178.03,178.02,17.05382956]
[1730110813188,0.12549,178.03,177.96,6.5575]
[1730110813388,0.12549,178.03,178.02,17.05382956]
[1730110817605,0.12549,178.03,178.01,17.05382956]
[1730110819614,0.12549,178.02,177.96,23.776884]
[1730110819908,0.12549,178.02,177.91,15.4049]
[1730110819909,0.12549,177.99,177.91,15.4049]
[1730110820082,0.12549,177.99,177.96,17.05382956]
[1730110820485,0.12549,177.99,177.95,17.05382956]
[1730110821086,5.74389,177.99,177.95,17.05382956]
[1730110821300,5.74389,177.99,177.96,17.05382956]
[1730110821609,5.74389,177.99,177.91,15.4049]
[1730110821610,0.12549,177.99,177.97,17.05382956]
[1730110823597,0.12549,177.99,177.96,17.05382956]
[1730110824911,0.12549,177.99,177.97,17.05382956]
[1730110825287,0.37647,177.99,177.98,17.05382956]
[1730110825800,20.25098,178.04,177.98,17.05382956]
[1730110826003,5.6167,178.04,178.01,17.05382956]
[1730110826399,0.12549,178.03,178.01,17.05382956]
[1730110826905,0.12549,178.03,177.93,17.05382956]
[1730110826906,0.12549,178.03,178.02,17.05382956]
[1730110827304,0.37647,178.03,178.02,17.05382956]
[1730110828403,0.12549,178.05,178.02,17.05382956]
[1730110828606,0.25098,178.06,178.04,17.05382956]
[1730110828804,0.25098,178.06,178.05,17.05382956]
[1730110830096,0.37647,178.06,178.05,17.05382956]
[1730110830291,5.99247,178.06,178.05,17.05382956]
[1730110830621,0.12549,178.05,177.97,43.776884]
[1730110830809,0.12549,178.05,178.04,17.05382956]
[1730110834513,0.12549,178.07,178.04,17.05382956]
[1730110834834,0.25098,178.07,178.06,17.05382956]
[1730110835020,76.5933,178.09,178.06,17.05382956]
[1730110835021,70.0,178.09,178.06,17.05382956]
[1730110835198,70.0,178.09,178.08,17.05382956]
[1730110835395,15.0948,178.11,178.08,17.05382956]
[1730110835599,15.0948,178.11,178.1,17.05382956]
[1730110836228,0.12549,178.11,178.1,17.05382956]
[1730110836402,5.73999,178.11,178.1,17.05382956]
[1730110836601,5.6145,178.11,178.1,17.05382956]
[1730110837132,0.12549,178.11,178.1,17.05382956]
[1730110837517,76.3232,178.13,178.1,17.05382956]
[1730110837702,75.6139,178.13,178.12,17.05382956]
[1730110838026,5.6139,178.13,178.12,17.05382956]
[1730110838232,5.73939,178.13,178.12,17.05382956]
[1730110838926,0.25098,178.12,178.11,17.05382956]
[1730110839425,0.12549,178.11,178.09,17.05382956]
[1730110839630,0.12549,178.11,178.08,17.05382956]
[1730110840332,0.12549,178.11,178.09,17.05382956]
[1730110840540,5.86578,178.1,178.09,17.05382956]
[1730110843532,0.25098,178.1,178.09,17.05382956]
[1730110843905,0.12549,178.09,178.03,23.776884]
[1730110844119,0.12549,178.09,178.08,17.05382956]
[1730110850540,0.12549,178.09,178.08,10.91339927]
[1730110861949,0.25098,178.12,178.08,10.91339927]
[1730110862239,0.37647,178.12,178.11,10.91339927]
[1730110865137,0.12549,178.11,178.03,23.776884]
[1730110865335,0.12549,178.11,178.09,10.91339927]
[1730110865645,0.12549,178.11,178.1,10.91339927]
[1730110866951,0.25098,178.12,178.1,10.91339927]
[1730110867150,0.37647,178.12,178.11,10.91339927]
[1730110867730,0.12549,178.12,178.11,10.91339927]
[1730110868650,0.12549,178.12,178.05,43.776884]
[1730110868855,0.12549,178.12,178.11,10.91339927]
[1730110876448,0.25098,178.14,178.13,10.91339927]
[1730110876751,0.37647,178.14,178.13,10.91339927]
[1730110878364,0.37647,178.14,178.12,10.91339927]
[1730110878664,0.12549,178.13,178.11,10.91339927]
[1730110878846,20.12549,178.13,178.1,10.91339927]
[1730110879051,0.25098,178.12,178.1,10.91339927]
[1730110880557,0.37647,178.12,178.11,10.91339927]
[1730110881837,15.7332,178.15,178.11,10.91339927]
[1730110882152,15.7332,178.15,178.14,10.91339927]
[1730110882382,15.85869,178.15,178.14,10.91339927]
[1730110883152,16.10967,178.15,178.14,10.91339927]
[1730110887160,0.37647,178.15,178.14,10.91339927]
[1730110892943,0.12549,178.14,178.07,23.776884]
[1730110893139,0.12549,178.14,178.13,10.91339927]
[1730110893756,0.25098,178.17,178.13,10.91339927]
[1730110893965,0.25098,178.17,178.16,10.91339927]
[1730110895570,0.37647,178.17,178.16,10.91339927]
[1730110897264,0.5932133,178.18,178.16,10.91339927]
[1730110897449,76.5253,178.26,178.17,54.56699635]
[1730110897648,70.0,178.25,178.13,15.5977]
[1730110897971,70.0,178.25,178.23,10.91339927]
[1730110898369,70.0,178.25,178.13,15.5977]
[1730110898545,0.12549,178.22,178.14,20.0]
[1730110898744,0.12549,178.22,178.21,10.91339927]
[1730110899345,0.25098,178.22,178.21,10.91339927]
[1730110904895,6.5253,178.26,178.21,10.91339927]
[1730110905077,0.25098,178.25,178.23,10.91339927]
[1730110905372,0.12549,178.24,178.23,10.91339927]
[1730110907388,0.12549,178.24,178.22,10.91339927]
[1730110911375,0.12549,178.24,178.23,10.91339927]
[1730110913377,0.12549,178.22,178.21,10.91339927]
[1730110916284,0.12549,178.18,178.08,15.5164]
[1730110916465,5.98877,178.18,178.15,10.91339927]
[1730110917559,0.37647,178.18,178.16,10.91339927]
[1730110917761,0.37647,178.18,178.17,10.91339927]
[1730110921874,0.37647,178.18,178.08,15.6164]
[1730110922076,0.37647,178.18,178.17,10.91339927]
[1730110924198,0.37647,178.18,178.15,10.91339927]
[1730110924364,70.0,178.17,178.08,15.5164]
[1730110924571,0.37647,178.16,178.13,10.91339927]
[1730110925067,0.37647,178.16,178.03,16.0705]
[1730110925264,0.37647,178.16,178.12,10.91339927]
[1730110925678,0.37647,178.13,178.03,15.9705]
[1730110925989,0.37647,178.13,178.1,10.91339927]
[1730110926374,0.37647,178.13,178.03,15.9705]
[1730110926375,0.97642127,178.26,178.19,3.6]
[1730110926694,75.141642,178.35,178.25,10.91339927]
[1730110926898,75.141642,178.35,178.3,10.91339927]
[1730110927186,0.12549,178.34,178.3,10.91339927]
[1730110927406,75.141642,178.35,178.29,10.91339927]
[1730110927777,0.12549,178.33,178.29,10.91339927]
[1730110927993,20.0,178.34,178.22,20.0]
[1730110928171,20.0,178.34,178.29,10.91339927]
[1730110928372,20.0,178.34,178.3,10.91339927]
[1730110928587,20.0,178.34,178.23,23.776884]
[1730110928794,90.0,178.34,178.3,17.01423762]
[1730110928972,20.0,178.34,178.3,17.01423762]
[1730110929473,0.12549,178.33,178.3,17.01423762]
[1730110929694,0.37647,178.33,178.3,17.01423762]
[1730110929909,0.25098,178.33,178.3,17.01423762]
[1730110930173,0.25098,178.33,178.29,17.01423762]
[1730110930498,0.25098,178.32,178.29,17.01423762]
[1730110930999,0.12549,178.32,178.29,17.01423762]
[1730110931195,0.25098,178.33,178.29,17.01423762]
[1730110931577,0.12549,178.32,178.27,17.01423762]
[1730110931775,0.25098,178.32,178.27,17.01423762]
[1730110932080,0.12549,178.31,178.27,17.01423762]
[1730110932386,0.12549,178.27,178.24,17.01423762]
[1730110932586,0.12549,178.27,178.23,17.01423762]
[1730110934669,0.12549,178.27,178.24,17.01423762]
[1730110935680,0.12549,178.27,178.22,17.01423762]
[1730110937883,0.12549,178.27,178.23,17.01423762]
[1730110938082,0.12549,178.27,178.24,17.01423762]
[1730110938804,0.12549,178.27,178.23,17.01423762]
[1730110940099,0.12549,178.26,178.23,17.01423762]
[1730110940275,0.12549,178.25,178.23,17.01423762]
[1730110940479,0.25098,178.25,178.23,17.01423762]
[1730110941510,0.25098,178.25,178.22,17.01423762]
[1730110941681,5.86098,178.25,178.22,17.01423762]
[1730110942004,5.86098,178.25,178.21,17.01423762]
[1730110942300,0.25098,178.25,178.22,17.01423762]
[1730110942996,0.25098,178.25,178.16,15.9175]
[1730110943211,0.25098,178.25,178.21,17.01423762]
[1730110944402,5.86108,178.25,178.21,17.01423762]
[1730110944592,5.86108,178.25,178.22,17.01423762]
[1730110944926,0.12549,178.24,178.14,0.1]
[1730110945207,0.25098,178.23,178.2,17.01423762]
[1730110946087,5.86168,178.23,178.19,17.01423762]
[1730110946294,0.12549,178.21,178.18,17.01423762]
[1730110946515,0.25098,178.21,178.18,17.01423762]
[1730110947598,5.86228,178.21,178.18,17.01423762]
[1730110948220,0.12549,178.2,178.18,17.01423762]
[1730110948427,0.25098,178.2,178.16,10.90674478]
[1730110949426,0.12549,178.18,178.16,10.90674478]
[1730110949626,0.25098,178.18,178.16,10.90674478]
[1730110949942,0.25098,178.18,178.17,10.90674478]
[1730110950225,0.25098,178.18,178.11,59.54447912]
[1730110950428,0.25098,178.18,178.15,10.90674478]
[1730110951124,0.25098,178.18,178.16,10.90674478]
[1730110951924,76.0852,178.24,178.11,59.54447912]
[1730110952123,5.6107,178.23,178.2,10.90674478]
[1730110952428,0.12549,178.22,178.21,10.90674478]
[1730110953505,0.25098,178.22,178.21,10.90674478]
[1730110954606,0.25098,178.22,178.21,17.0334561]
[1730110955528,5.86198,178.22,178.21,17.0334561]
[1730110955727,0.12549,178.21,178.2,17.0334561]
[1730110956735,5.73679,178.21,178.2,17.0334561]
[1730110957221,5.86228,178.21,178.2,17.0334561]
[1730110957447,0.12549,178.19,178.16,17.0334561]
[1730110957806,0.12549,178.19,178.17,17.0334561]
[1730110958508,5.86328,178.18,178.17,17.0334561]
[1730110959114,5.86328,178.18,178.16,17.0334561]
[1730110959816,5.86328,178.18,178.17,17.0334561]
[1730110961432,5.86328,178.18,178.16,17.0334561]
[1730110962316,0.12549,178.17,178.16,17.0334561]
[1730110962521,0.25098,178.17,178.16,17.0334561]
[1730110962703,0.25098,178.17,178.15,17.0334561]
[1730110963016,0.25098,178.17,178.07,19.5198]
[1730110963017,0.25098,178.17,178.14,17.0334561]
[1730110963616,0.25098,178.15,178.13,17.0334561]
[1730110963823,0.25098,178.15,178.12,17.0334561]
[1730110964225,0.25098,178.15,178.11,17.0334561]
[1730110964521,0.25098,178.15,178.12,17.0334561]
[1730110964723,0.12549,178.13,178.12,17.0334561]
[1730110965102,0.12549,178.13,178.04,20.0]
[1730110965302,0.12549,178.13,178.11,17.0334561]
[1730110965827,5.86508,178.12,178.11,17.0334561]
[1730110966636,5.86508,178.12,178.1,17.0334561]
[1730110967829,5.86548,178.11,178.1,17.0334561]
[1730110968035,5.86548,178.11,178.09,17.0334561]
[1730110969330,5.86548,178.11,178.03,15.9175]
[1730110969331,5.99097,178.11,178.1,17.0334561]
[1730110970037,5.99097,178.11,178.03,15.9175]
[1730110970235,0.25098,178.1,178.08,17.0334561]
[1730110970443,0.25098,178.09,178.08,17.0334561]
[1730110972131,5.86608,178.09,178.08,17.0334561]
[1730110972463,0.25098,178.09,178.08,17.0334561]
[1730110974340,0.12549,178.07,178.06,17.0334561]
[1730110975441,0.25098,178.06,177.98,15.9175]
[1730110975623,0.25098,178.06,178.05,17.0334561]
[1730110975828,0.12549,178.05,178.03,17.0334561]
[1730110976344,0.12549,178.05,178.02,17.0334561]
[1730110976345,0.12549,178.03,178.02,17.0334561]
[1730110976647,0.12549,178.0,177.94,15.7991]
[1730110976854,0.12549,178.0,177.99,10.92477171]
[1730110977265,0.12549,178.03,177.99,10.92477171]
[1730110977437,5.6161,178.06,177.95,5.6195]
[1730110977757,0.25098,178.06,178.05,10.92477171]
[1730110977956,0.37647,178.06,178.05,10.92477171]
[1730110980258,0.25098,178.06,178.05,10.92477171]
[1730110980447,0.25098,178.06,178.05,17.05330886]
[1730110980959,5.6145,178.11,178.05,17.05330886]
[1730110981171,75.6143,178.12,178.1,17.05330886]
[1730110981462,75.6143,178.12,178.02,17.05330886]
[1730110981463,75.6143,178.12,178.11,17.05330886]
[1730110982057,21.8432,178.13,178.11,17.05330886]
[1730110982242,5.6136,178.14,178.12,17.05330886]
[1730110982440,5.73909,178.14,178.13,17.05330886]
[1730110983457,5.99007,178.14,178.13,17.05330886]
[1730110985064,0.37647,178.13,178.04,20.0]
[1730110985288,0.37647,178.13,178.12,17.05330886]
[1730110987872,13.48625029,178.16,178.12,40.83019286]
[1730110988170,21.41,178.26,178.11,17.05330886]
[1730110988171,75.61,178.25,178.15,17.05330886]
[1730110988363,75.61,178.25,178.23,17.05330886]
[1730110988568,0.12549,178.24,178.23,17.05330886]
[1730110988863,75.61,178.25,178.23,17.05330886]
[1730110989667,0.37647,178.24,178.23,17.05330886]
[1730110990366,0.12549,178.23,178.22,17.05330886]
[1730110990565,0.37647,178.23,178.22,17.05330886]
[1730110991073,70.37647,178.23,178.21,17.05330886]
[1730110991250,0.25098,178.22,178.2,17.05330886]
[1730110992068,0.37647,178.22,178.21,17.05330886]
[1730110993257,0.37647,178.22,178.19,17.05330886]
[1730110993561,0.37647,178.22,178.2,17.05330886]
[1730110993944,0.37647,178.22,178.21,17.05330886]
[1730110997164,0.37647,178.22,178.2,17.05330886]
[1730110999355,0.37647,178.22,178.19,17.05330886]
[1730111004779,0.25098,178.22,178.19,17.05330886]
[1730111004953,0.25098,178.23,178.2,17.05330886]
[1730111005462,0.12549,178.22,178.2,17.05330886]
[1730111006557,0.12549,178.22,178.19,17.05330886]
[1730111008469,0.12549,178.22,178.19,10.90277788]
[1730111014669,5.73659,178.22,178.19,10.90277788]
[1730111014986,0.12549,178.21,178.19,10.90277788]
[1730111020197,0.12549,178.21,178.13,20.0]
[1730111020490,0.12549,178.21,178.09,16.1175]
[1730111020491,0.12549,178.18,178.14,10.90277788]
[1730111020890,0.12549,178.19,178.14,10.90277788]
[1730111021074,0.25098,178.2,178.16,10.90277788]
[1730111021381,0.25098,178.2,178.17,10.90277788]
[1730111021382,0.12549,178.19,178.17,10.90277788]
[1730111021591,0.12549,178.19,178.16,10.90277788]
[1730111024200,0.12549,178.19,178.11,43.61111152]
[1730111024201,0.12549,178.19,178.18,10.90277788]
[1730111025098,0.12549,178.2,178.18,10.90277788]
[1730111025573,0.12549,178.2,178.17,10.90277788]
[1730111025902,10.90277788,178.23,178.18,10.90277788]
[1730111026087,11.02826788,178.22,178.12,23.776884]
[1730111026284,0.12549,178.2,178.16,10.90277788]
[1730111026999,0.25098,178.2,178.16,10.90277788]
[1730111027205,11.02826788,178.19,178.09,15.9175]
[1730111027507,0.25098,178.17,178.13,10.90277788]
[1730111027699,0.12549,178.15,178.09,15.9175]
[1730111027887,0.37647,178.16,178.12,10.90277788]
[1730111028091,10.90277788,178.15,178.1,10.90277788]
[1730111028272,0.12549,178.13,178.1,10.90277788]
[1730111031300,0.12549,178.13,178.05,15.9075]
[1730111031485,0.12549,178.12,178.09,10.90277788]
[1730111031810,0.12549,178.12,178.1,10.90277788]
[1730111034981,0.25098,178.15,178.11,10.90277788]
[1730111035180,0.25098,178.15,178.12,10.90277788]
[1730111035381,0.37647,178.16,178.12,10.90277788]
[1730111035581,5.98937,178.16,178.12,10.90277788]
[1730111035807,6.1996,178.19,178.15,10.90277788]
[1730111035988,6.1996,178.19,178.17,10.90277788]
[1730111036383,6.1996,178.19,178.16,10.90277788]
[1730111037202,0.37647,178.18,178.16,10.90277788]
[1730111039811,0.37647,178.18,178.15,10.90277788]
[1730111040116,0.37647,178.18,178.16,10.90277788]
[1730111040493,5.98897,178.18,178.14,10.90277788]
[1730111041015,5.98897,178.18,178.05,16.1075]
[1730111041016,86.89174788,178.18,178.13,10.90277788]
[1730111042212,81.27924788,178.16,178.11,10.90277788]
[1730111043504,0.12549,178.13,178.11,10.90277788]
[1730111043701,0.12549,178.13,178.05,15.9075]
[1730111043925,0.12549,178.13,178.1,10.90277788]
[1730111044589,0.12549,178.13,178.09,10.90277788]
[1730111045083,0.12549,178.13,178.02,43.61111152]
[1730111045084,0.25098,178.11,178.08,10.90277788]
[1730111045724,0.12549,178.11,178.1,10.90277788]
[1730111045889,0.12549,178.13,178.1,10.90277788]
[1730111046089,0.12549,178.13,178.12,10.90277788]
[1730111046786,0.12549,178.14,178.12,10.90277788]
[1730111046988,5.6123,178.18,178.13,10.90277788]
[1730111047208,5.6123,178.18,178.11,43.61111152]
[1730111047209,22.3059,178.19,178.16,10.90277788]
[1730111047393,0.12549,178.18,178.16,10.90277788]
[1730111047584,70.0,178.21,178.17,10.90277788]
[1730111047802,75.6114,178.21,178.17,10.90277788]
[1730111047987,0.12549,178.2,178.17,10.90277788]
[1730111048890,5.98817,178.2,178.17,10.90277788]
[1730111050023,5.98817,178.2,178.18,10.90277788]
[1730111050393,5.98817,178.2,178.17,10.90277788]
[1730111052129,5.98817,178.2,178.18,10.90277788]
[1730111057418,5.98817,178.2,178.19,10.90277788]
[1730111060924,5.98817,178.2,178.18,10.90277788]
[1730111061604,75.98817,178.2,178.11,43.61111152]
[1730111061813,75.98817,178.2,178.16,10.90277788]
[1730111066326,0.12549,178.18,178.17,10.90277788]
[1730111066634,25.98877,178.18,178.17,10.90277788]
[1730111067010,0.25098,178.17,178.16,10.90277788]
[1730111068120,5.86358,178.17,178.16,10.90277788]
[1730111068510,5.6126,178.17,178.16,10.90277788]
[1730111068834,5.6113,178.21,178.16,10.90277788]
[1730111069036,0.12549,178.2,178.18,10.90277788]
[1730111070060,5.86288,178.19,178.18,10.90277788]
[1730111075249,5.6107,178.23,178.18,10.90277788]
[1730111075413,5.6107,178.23,178.22,10.90277788]
[1730111075613,0.12549,178.22,178.13,15.1382]
[1730111075831,0.12549,178.22,178.2,10.90277788]
[1730111076419,20.12549,178.22,178.2,10.90277788]
[1730111076621,5.86228,178.21,178.2,10.90277788]
[1730111078442,5.86228,178.21,178.13,15.1382]
[1730111078443,0.25098,178.2,178.19,10.90277788]
[1730111078645,5.86258,178.2,178.19,10.90277788]
[1730111084142,70.0,178.24,178.19,10.90277788]
[1730111084447,0.37647,178.23,178.21,10.90277788]
[1730111085149,0.37647,178.23,178.2,10.90277788]
[1730111085339,0.12549,178.21,178.14,0.1]
[1730111085528,5.61,178.25,178.2,10.90277788]
[1730111085730,25.61,178.25,178.14,0.1]
[1730111085939,25.61,178.25,178.21,10.90277788]
[1730111086946,0.37647,178.24,178.13,15.1382]
[1730111087145,0.37647,178.24,178.21,10.90277788]
[1730111088022,0.25098,178.22,178.21,10.90277788]
[1730111089149,5.86198,178.22,178.21,10.90277788]
[1730111089451,0.12549,178.21,178.19,10.90277788]
[1730111089660,0.12549,178.21,178.17,10.90277788]
[1730111089661,0.12549,178.2,178.17,10.90277788]
[1730111091264,5.73729,178.2,178.13,15.1382]
[1730111091439,5.73729,178.2,178.17,10.90277788]
[1730111091768,5.73729,178.2,178.09,0.1]
[1730111091769,0.12549,178.17,178.09,15.911]
[1730111092060,0.12549,178.17,178.14,10.90277788]
[1730111092530,0.12549,178.17,178.15,10.90277788]
[1730111092954,5.73809,178.17,178.15,10.90277788]
[1730111093261,0.12549,178.18,178.16,10.90277788]
[1730111093438,0.12549,178.18,178.17,10.90277788]
[1730111094253,0.25098,178.18,178.17,10.90277788]
[1730111095072,0.12549,178.19,178.17,10.90277788]
[1730111095359,5.6116,178.2,178.18,10.90277788]
[1730111095750,0.25098,178.2,178.19,10.90277788]
[1730111096055,0.12549,178.2,178.19,10.90277788]
[1730111096351,0.25098,178.2,178.19,10.90277788]
[1730111098565,5.86258,178.2,178.19,10.90277788]